bitfinex-derivatives/quotes_SOLF0:USTF0_20250113
["timestamp","ask_amount","ask_price","bid_price","bid_amount"]
[1736803619435,2.7523,181.75,181.7,2.753]
[1736803619935,2.7525,181.73,181.68,2.7532]
[1736803620136,2.7525,181.73,181.65,1.6785]
[1736803620137,13.03570183,181.76,181.65,1.6785]
[1736803620339,13.03570183,181.73,181.64,6.38]
[1736803620540,2.7533,181.68,181.64,6.38]
[1736803622735,2.7533,181.68,181.64,9.1338]
[1736803623039,2.7533,181.68,181.64,6.38]
[1736803625140,2.7533,181.68,181.64,9.1338]
[1736803626646,2.7533,181.68,181.64,6.38]
[1736803626847,13.03570183,181.7,181.64,6.38]
[1736803627144,2.7534,181.67,181.64,6.38]
[1736803628043,2.7532,181.69,181.64,9.1338]
[1736803628242,2.7532,181.69,181.64,6.38]
[1736803629247,2.7532,181.69,181.65,2.7537]
[1736803630345,1.6632,181.72,181.68,2.7532]
[1736803630646,1.6632,181.72,181.64,6.38]
[1736803631348,2.7529,181.71,181.66,2.7535]
[1736803631751,2.7529,181.71,181.64,6.38]
[1736803631752,13.03570183,181.73,181.64,6.38]
[1736803631952,2.753,181.7,181.66,2.7535]
[1736803632144,13.03570183,181.73,181.64,6.38]
[1736803632350,13.03570183,181.7,181.64,6.38]
[1736803632549,2.7534,181.68,181.64,6.38]
[1736803632946,13.03570183,181.7,181.59,14.59120183]
[1736803633147,13.03570183,181.67,181.59,1.5555]
[1736803633347,13.03570183,181.64,181.55,6.38]
[1736803633753,2.7543,181.62,181.57,2.7549]
[1736803634849,2.7544,181.61,181.57,2.7549]
[1736803635754,2.7544,181.61,181.56,2.7551]
[1736803636453,13.03570183,181.61,181.5,13.03570183]
[1736803636653,2.7547,181.59,181.54,2.7554]
[1736803636952,13.03570183,181.58,181.48,94.5]
[1736803637160,2.7556,181.53,181.48,97.2563]
[1736803637656,15.79100183,181.55,181.49,2.756]
[1736803637856,13.03570183,181.55,181.48,94.5]
[1736803638956,2.7556,181.53,181.48,97.2562]
[1736803639562,15.79100183,181.55,181.48,94.5]
[1736803639860,13.03570183,181.55,181.48,94.5]
[1736803640357,2.7555,181.54,181.48,97.2563]
[1736803640748,2.7556,181.53,181.48,97.2563]
[1736803641854,3.3025,181.6,181.5,2.7559]
[1736803641855,2.7552,181.56,181.5,2.7559]
[1736803642056,3.3025,181.6,181.48,94.5]
[1736803642258,16.33820183,181.6,181.49,1.6838]
[1736803642461,2.7551,181.57,181.52,2.7557]
[1736803642858,16.33820183,181.6,181.49,1.6838]
[1736803643261,13.03570183,181.6,181.5,13.03570183]
[1736803643461,14.60220183,181.63,181.5,14.72590183]
[1736803644859,2.7543,181.62,181.56,2.755]
[1736803645559,2.7543,181.62,181.57,2.7549]
[1736803645961,13.03570183,181.6,181.5,21.10590183]
[1736803646159,13.03570183,181.6,181.5,6.38]
[1736803646360,13.03570183,181.57,181.5,6.38]
[1736803646860,2.7551,181.56,181.51,2.7557]
[1736803647066,1.6811,181.59,181.5,6.38]
[1736803647359,208.86193251,181.71,181.56,13.03570183]
[1736803647360,152.25626454,181.7,181.56,13.03570183]
[1736803647564,13.03570183,181.69,181.57,6.38]
[1736803647865,13.03570183,181.69,181.57,11.1839]
[1736803648065,13.03570183,181.69,181.59,13.03570183]
[1736803648253,190.32033068,181.72,181.59,13.03570183]
[1736803648254,13.03570183,181.72,181.59,13.03570183]
[1736803648459,13.03570183,181.72,181.62,13.03570183]
[1736803648659,2.7528,181.71,181.65,2.7536]
[1736803648858,2.7528,181.71,181.65,9.1336]
[1736803649459,25.8405317,181.74,181.65,6.38]
[1736803650058,2.7535,181.67,181.65,6.38]
[1736803651356,2.7531,181.7,181.65,9.1337]
[1736803652266,2.7531,181.69,181.65,9.1337]
[1736803652764,2.7531,181.69,181.66,2.7536]
[1736803653661,25.8405317,181.74,181.65,6.38]
[1736803653854,2.7528,181.71,181.65,6.38]
[1736803654961,2.7528,181.71,181.67,2.7534]
[1736803655562,2.7528,181.71,181.66,2.7536]
[1736803655762,25.8405317,181.74,181.66,2.7536]
[1736803655963,2.7533,181.69,181.65,6.38]
[1736803657760,2.7529,181.71,181.65,9.1336]
[1736803658360,2.753,181.7,181.65,9.1336]
[1736803658867,2.753,181.7,181.65,6.38]
[1736803659870,2.7532,181.69,181.65,6.38]
[1736803661373,2.7534,181.68,181.65,6.38]
[1736803661687,20.9524317,181.68,181.57,4.8039]
[1736803661880,20.9524317,181.68,181.58,6.38]
[1736803662186,2.7543,181.62,181.58,6.38]
[1736803662482,20.9524317,181.68,181.58,6.38]
[1736803662680,152.25626454,181.78,181.58,6.38]
[1736803662886,2.7531,181.7,181.59,20.9524317]
[1736803663085,2.7531,181.7,181.59,22.6713317]
[1736803663485,2.7531,181.7,181.64,2.7538]
[1736803663685,2.7531,181.7,181.65,6.36]
[1736803663887,20.9524317,181.76,181.65,6.36]
[1736803665186,2.7533,181.68,181.65,6.36]
[1736803665487,20.9524317,181.7,181.65,6.36]
[1736803665986,2.7538,181.65,181.61,2.7542]
[1736803666186,20.9524317,181.7,181.61,2.7542]
[1736803666482,2.7543,181.62,181.6,6.36]
[1736803666890,20.9524317,181.67,181.6,6.36]
[1736803667790,2.7543,181.62,181.6,6.36]
[1736803668587,3.4087,181.68,181.6,6.36]
[1736803670187,2.7538,181.65,181.62,2.7542]
[1736803670387,2.7538,181.65,181.6,6.36]
[1736803671087,2.7538,181.65,181.6,9.1144]
[1736803671686,1.6923,181.68,181.6,6.36]
[1736803671885,2.7536,181.66,181.61,2.7542]
[1736803672281,2.7541,181.63,181.6,6.36]
[1736803672483,1.6923,181.68,181.6,6.36]
[1736803673081,2.7539,181.64,181.6,6.36]
[1736803673387,14.70953231,181.69,181.6,6.36]
[1736803673586,2.7537,181.66,181.61,2.7543]
[1736803674690,14.70953231,181.69,181.61,2.7543]
[1736803674890,2.7537,181.65,181.61,2.7543]
[1736803675487,2.7536,181.66,181.61,2.7543]
[1736803675694,14.70953231,181.69,181.61,2.7543]
[1736803677888,2.7537,181.66,181.61,2.7543]
[1736803679188,14.70953231,181.69,181.6,6.36]
[1736803679386,13.10173231,181.66,181.58,6.36]
[1736803679583,13.10173231,181.66,181.57,1.5725]
[1736803679584,13.10173231,181.63,181.57,1.5725]
[1736803679890,13.10173231,181.63,181.56,100.86]
[1736803680286,13.10173231,181.63,181.56,94.5]
[1736803680493,2.7546,181.6,181.56,94.5]
[1736803680894,2.7546,181.6,181.56,97.2551]
[1736803681295,2.7547,181.59,181.56,94.5]
[1736803681496,13.10173231,181.63,181.56,97.2551]
[1736803681688,13.10173231,181.63,181.56,94.5]
[1736803681884,2.7545,181.6,181.56,94.5]
[1736803682089,2.7545,181.6,181.56,97.255]
[1736803683098,13.10173231,181.63,181.56,97.255]
[1736803683395,2.754,181.64,181.59,2.7546]
[1736803683596,3.259,181.68,181.59,2.7546]
[1736803683799,153.86406454,181.69,181.6,13.10173231]
[1736803683994,152.25626454,181.69,181.6,13.10173231]
[1736803684793,13.10173231,181.72,181.6,13.10173231]
[1736803685197,2.7533,181.68,181.64,2.7538]
[1736803685399,13.10173231,181.72,181.65,6.36]
[1736803685600,152.25626454,181.73,181.65,6.36]
[1736803686007,203.42206299,181.75,181.65,6.36]
[1736803686008,152.25626454,181.74,181.66,14.80863231]
[1736803686196,152.25626454,181.74,181.7,2.7529]
[1736803686508,152.25626454,181.74,181.66,14.80863231]
[1736803686699,152.25626454,181.74,181.68,2.7532]
[1736803686898,152.25626454,181.74,181.66,16.37463231]
[1736803687298,152.25626454,181.74,181.66,14.80863231]
[1736803687600,13.10173231,181.75,181.66,1.7069]
[1736803688300,13.10173231,181.75,181.65,6.36]
[1736803688500,1.5958,181.74,181.65,6.36]
[1736803688702,2.7528,181.72,181.65,6.36]
[1736803689003,13.10173231,181.72,181.65,6.36]
[1736803689592,2.7534,181.68,181.65,6.36]
[1736803689900,13.10173231,181.69,181.65,6.36]
[1736803690094,2.7536,181.67,181.62,6.36]
[1736803691496,2.7533,181.68,181.62,6.36]
[1736803691698,2.7533,181.68,181.63,2.754]
[1736803691896,13.10173231,181.69,181.62,6.36]
[1736803692801,2.7537,181.66,181.62,6.36]
[1736803692991,13.10173231,181.69,181.62,6.36]
[1736803694204,1.6308,181.71,181.64,2.7539]
[1736803694501,2.7533,181.69,181.64,2.7539]
[1736803694701,1.6308,181.71,181.64,2.7539]
[1736803695103,13.10173231,181.69,181.62,6.36]
[1736803695901,2.7536,181.66,181.62,6.36]
[1736803697101,2.7536,181.66,181.62,9.1142]
[1736803697604,2.7536,181.66,181.62,6.36]
[1736803698801,2.754,181.63,181.59,2.7545]
[1736803698999,13.10173231,181.63,181.52,13.10173231]
[1736803699202,13.10173231,181.63,181.56,100.86]
[1736803699402,2.7544,181.61,181.56,103.615]
[1736803699804,13.10173231,181.63,181.56,100.86]
[1736803700005,2.7548,181.58,181.56,100.86]
[1736803701608,2.7549,181.57,181.56,100.86]
[1736803702002,2.7549,181.57,181.56,94.5]
[1736803703410,2.7545,181.61,181.56,94.5]
[1736803703604,3.3319,181.62,181.56,94.5]
[1736803704911,2.7548,181.59,181.56,97.255]
[1736803705309,13.10173231,181.6,181.56,94.5]
[1736803705502,2.7553,181.55,181.51,6.36]
[1736803706515,2.7551,181.56,181.52,2.7556]
[1736803707010,2.7551,181.56,181.51,6.36]
[1736803707610,13.10173231,181.6,181.51,6.36]
[1736803707611,2.7549,181.58,181.51,9.1158]
[1736803707813,13.10173231,181.6,181.5,1.6982]
[1736803708113,1.6829,181.59,181.51,6.36]
[1736803708317,2.7555,181.54,181.51,6.36]
[1736803708613,1.6829,181.59,181.51,6.36]
[1736803708812,2.7554,181.54,181.51,6.36]
[1736803709510,2.7556,181.53,181.51,6.36]
[1736803710210,2.7555,181.54,181.51,6.36]
[1736803711815,1.6829,181.59,181.51,6.36]
[1736803712015,3.3319,181.62,181.51,6.36]
[1736803712411,2.7549,181.58,181.51,6.36]
[1736803713016,2.7549,181.58,181.53,2.7555]
[1736803713414,3.3319,181.62,181.53,2.7555]
[1736803713614,2.755,181.57,181.53,2.7555]
[1736803713810,3.3319,181.62,181.53,2.7555]
[1736803714223,3.3319,181.62,181.54,2.7554]
[1736803714224,2.7549,181.58,181.54,2.7554]
[1736803716420,2.7546,181.6,181.56,2.755]
[1736803717421,2.7547,181.59,181.54,2.7553]
[1736803718620,2.7547,181.59,181.55,2.7552]
[1736803719119,13.10173231,181.57,181.48,6.36]
[1736803719319,13.10173231,181.57,181.48,9.1163]
[1736803719527,2.7557,181.53,181.48,6.36]
[1736803719721,13.10173231,181.57,181.48,6.36]
[1736803719927,1.7169,181.59,181.48,6.36]
[1736803720129,2.7553,181.55,181.48,6.36]
[1736803720330,2.7553,181.55,181.5,2.756]
[1736803720529,2.7553,181.55,181.48,6.36]
[1736803720825,1.7169,181.59,181.5,13.10173231]
[1736803721023,1.6129,181.62,181.5,13.10173231]
[1736803721224,1.6129,181.62,181.48,6.36]
[1736803721225,1.6129,181.62,181.57,2.7549]
[1736803721429,1.7169,181.65,181.57,6.36]
[1736803721932,2.7542,181.62,181.57,9.1149]
[1736803722131,1.7169,181.65,181.57,6.36]
[1736803722530,2.7544,181.61,181.57,6.36]
[1736803723031,1.5512,181.68,181.59,13.10173231]
[1736803723329,152.25626454,181.71,181.59,13.10173231]
[1736803723535,152.25626454,181.71,181.62,13.10173231]
[1736803724031,16.41303231,181.72,181.62,13.10173231]
[1736803724630,152.25626454,181.75,181.65,13.10173231]
[1736803724927,13.10173231,181.74,181.66,6.36]
[1736803725128,2.7529,181.71,181.66,6.36]
[1736803725738,2.753,181.7,181.66,6.36]
[1736803726436,13.10173231,181.74,181.66,6.36]
[1736803726633,13.10173231,181.71,181.66,6.36]
[1736803726833,13.10173231,181.71,181.61,6.36]
[1736803727137,2.7539,181.65,181.61,6.36]
[1736803727934,2.7542,181.63,181.61,6.36]
[1736803728437,3.2846,181.66,181.61,6.36]
[1736803728638,2.7539,181.64,181.61,6.36]
[1736803729140,2.7536,181.66,181.62,2.7542]
[1736803730536,1.7021,181.67,181.61,6.36]
[1736803731339,2.7542,181.62,181.61,6.36]
[1736803731541,13.10173231,181.65,181.6,94.52]
[1736803732136,2.7541,181.63,181.58,2.7547]
[1736803732341,2.7541,181.63,181.56,7.9831]
[1736803733631,2.7541,181.63,181.58,2.7547]
[1736803734639,2.7539,181.64,181.59,2.7546]
[1736803735944,1.7021,181.67,181.6,2.7545]
[1736803736444,1.7021,181.67,181.56,7.9831]
[1736803736644,2.7539,181.64,181.59,2.7546]
[1736803738144,2.7541,181.63,181.59,2.7546]
[1736803738445,1.7021,181.67,181.57,2.7548]
[1736803738741,2.7542,181.63,181.57,2.7548]
[1736803739143,13.10173231,181.65,181.57,2.7548]
[1736803739443,13.10173231,181.65,181.57,6.34]
[1736803739844,13.10173231,181.65,181.57,9.0949]
[1736803740750,2.7543,181.62,181.57,9.0949]
[1736803740946,13.10173231,181.65,181.57,6.34]
[1736803741642,2.7541,181.63,181.58,2.7548]
[1736803744345,2.7541,181.63,181.57,6.34]
[1736803744546,2.7541,181.63,181.59,2.7545]
[1736803745046,2.7541,181.63,181.58,2.7548]
[1736803746248,2.7541,181.63,181.57,6.34]
[1736803746439,1.7021,181.67,181.57,6.34]
[1736803746846,1.7021,181.67,181.61,2.7542]
[1736803747045,2.7536,181.66,181.58,13.10173231]
[1736803748148,13.10173231,181.71,181.61,13.10173231]
[1736803748450,4.9227,181.72,181.64,13.10173231]
[1736803748451,1.6381,181.72,181.64,13.10173231]
[1736803748647,165.35799685,181.74,181.65,6.34]
[1736803748848,152.25626454,181.74,181.65,6.34]
[1736803749144,152.25626454,181.74,181.67,13.10173231]
[1736803749549,2.752,181.77,181.72,2.7525]
[1736803749746,165.35799685,181.8,181.73,6.34]
[1736803750146,2.7518,181.78,181.73,6.34]
[1736803750750,2.752,181.77,181.73,6.34]
[1736803750949,13.10173231,181.8,181.73,6.34]
[1736803751255,13.10173231,181.77,181.69,6.34]
[1736803752153,13.10173231,181.74,181.69,6.34]
[1736803752756,2.7528,181.71,181.69,6.34]
[1736803752959,13.10173231,181.74,181.69,6.34]
[1736803753151,1.6901,181.73,181.69,6.34]
[1736803753851,2.753,181.7,181.69,6.34]
[1736803757659,1.6389,181.76,181.69,6.34]
[1736803758056,1.6389,181.76,181.7,2.7529]
[1736803758253,1.6389,181.76,181.69,6.34]
[1736803759155,2.7525,181.74,181.7,2.7528]
[1736803759551,1.6389,181.76,181.7,2.7528]
[1736803759760,2.7526,181.73,181.7,2.7528]
[1736803759960,13.10173231,181.74,181.67,2.7533]
[1736803760154,2.7527,181.72,181.67,2.7533]
[1736803760360,13.10173231,181.74,181.67,2.7533]
[1736803760754,2.753,181.71,181.67,2.7533]
[1736803761765,2.753,181.7,181.67,2.7533]
[1736803761959,13.10173231,181.71,181.66,94.5]
[1736803762664,13.10173231,181.68,181.66,94.5]
[1736803762861,2.7537,181.66,181.63,6.34]
[1736803763856,2.7537,181.65,181.63,6.34]
[1736803764280,2.7537,181.65,181.61,6.34]
[1736803764473,2.7537,181.65,181.61,9.0943]
[1736803764863,13.10173231,181.69,181.6,1.6563]
[1736803765066,2.7541,181.63,181.61,6.34]
[1736803765661,2.7538,181.65,181.61,6.34]
[1736803767159,2.7538,181.65,181.61,9.0943]
[1736803767762,2.7542,181.62,181.58,2.7548]
[1736803767952,2.7542,181.62,181.59,6.34]
[1736803769366,13.10173231,181.66,181.59,9.0946]
[1736803769564,1.5694,181.68,181.59,9.0946]
[1736803769765,2.754,181.64,181.59,9.0946]
[1736803770860,1.5694,181.68,181.59,6.34]
[1736803771263,13.10173231,181.72,181.59,6.34]
[1736803771567,2.7536,181.66,181.59,6.34]
[1736803771964,2.7536,181.66,181.6,13.10173231]
[1736803772160,2.753,181.7,181.6,13.10173231]
[1736803772465,2.753,181.7,181.63,13.10173231]
[1736803772980,1.5544,181.72,181.63,13.10173231]
[1736803773181,2.7528,181.71,181.63,13.10173231]
[1736803773385,2.7528,181.71,181.66,2.7535]
[1736803773585,2.7523,181.75,181.67,6.34]
[1736803774083,2.7523,181.75,181.7,2.753]
[1736803774669,2.7525,181.74,181.69,2.7531]
[1736803777165,2.7525,181.74,181.7,2.753]
[1736803781168,2.7526,181.73,181.69,2.753]
[1736803781371,13.10173231,181.72,181.62,3.199]
[1736803781673,13.10173231,181.72,181.63,6.34]
[1736803782171,2.7531,181.7,181.65,2.7536]
[1736803783577,152.25626454,181.77,181.66,13.10173231]
[1736803784170,13.10173231,181.75,181.63,6.34]
[1736803786072,2.7529,181.71,181.63,6.34]
[1736803786777,2.7529,181.71,181.66,2.7534]
[1736803788272,13.10173231,181.75,181.62,14.66703231]
[1736803788573,13.10173231,181.72,181.63,6.32]
[1736803788769,4.9058,181.71,181.63,6.32]
[1736803788972,2.7532,181.69,181.63,6.32]
[1736803789171,4.9058,181.71,181.63,6.32]
[1736803789572,2.7536,181.66,181.63,6.32]
[1736803789972,4.9058,181.71,181.63,6.32]
[1736803790177,2.7535,181.67,181.63,6.32]
[1736803790379,4.9058,181.71,181.63,6.32]
[1736803790977,2.7532,181.69,181.65,2.7536]
[1736803791671,2.753,181.7,181.66,2.7535]
[1736803792169,2.7531,181.69,181.65,2.7537]
[1736803792772,4.4024,181.71,181.67,2.7534]
[1736803792969,1.6428,181.75,181.65,13.10173231]
[1736803793169,152.25626454,181.77,181.68,13.10173231]
[1736803793369,2.7523,181.75,181.71,2.7528]
[1736803793578,152.25626454,181.77,181.7,6.32]
[1736803794075,1.5686,181.79,181.7,6.32]
[1736803795177,2.7522,181.76,181.72,2.7526]
[1736803795674,2.7522,181.75,181.71,2.7528]
[1736803796178,1.5686,181.79,181.7,6.32]
[1736803796379,2.7521,181.76,181.72,2.7526]
[1736803797481,2.7519,181.78,181.73,2.7524]
[1736803799079,2.7519,181.78,181.71,13.10173231]
[1736803799281,2.7519,181.77,181.73,2.7525]
[1736803799882,2.7524,181.74,181.71,2.7527]
[1736803800382,1.5686,181.79,181.7,6.32]
[1736803800581,2.7522,181.76,181.71,2.7527]
[1736803800984,2.7522,181.76,181.7,6.32]
[1736803801486,13.10173231,181.78,181.7,6.32]
[1736803801879,2.7524,181.74,181.66,94.46]
[1736803802075,13.10173231,181.78,181.69,2.753]
[1736803802283,1.5686,181.79,181.69,13.10173231]
[1736803802683,1.5686,181.79,181.73,2.7524]
[1736803802976,1.5686,181.79,181.67,6.32]
[1736803803175,1.5686,181.79,181.69,2.7531]
[1736803803481,2.7531,181.7,181.66,94.46]
[1736803803674,8.83089195,181.79,181.66,94.46]
[1736803803675,13.10173231,181.71,181.66,94.46]
[1736803804077,1.6998,181.73,181.66,94.46]
[1736803804784,1.6998,181.73,181.68,2.7533]
[1736803804986,1.6998,181.73,181.66,94.46]
[1736803805375,1.6211,181.76,181.66,107.56173231]
[1736803805791,152.25626454,181.77,181.69,13.10173231]
[1736803805983,215.6072307,181.79,181.69,13.10173231]
[1736803805984,153.82486454,181.79,181.69,13.10173231]
[1736803806885,1.5686,181.79,181.69,13.10173231]
[1736803807184,2.7519,181.77,181.69,13.10173231]
[1736803807887,152.25626454,181.82,181.75,13.10173231]
[1736803808086,152.25626454,181.82,181.76,6.32]
[1736803808390,152.25626454,181.82,181.78,13.10173231]
[1736803808684,165.35799685,181.86,181.76,6.32]
[1736803809583,13.10173231,181.86,181.76,6.32]
[1736803809788,20.35786043,181.86,181.76,6.32]
[1736803809983,20.35786043,181.86,181.76,9.0719]
[1736803810586,2.7513,181.82,181.76,9.0719]
[1736803813489,13.10173231,181.82,181.71,13.10173231]
[1736803813688,13.10173231,181.82,181.71,6.32]
[1736803813689,3.3201,181.81,181.71,6.32]
[1736803814486,1.6156,181.87,181.74,13.10173231]
[1736803814692,152.25626454,181.87,181.81,13.10173231]
[1736803814994,152.25626454,181.87,181.82,6.32]
[1736803815793,152.25626454,181.9,181.84,13.10173231]
[1736803816090,152.25626454,181.9,181.87,13.10173231]
[1736803816590,152.25626454,181.97,181.84,13.10173231]
[1736803816988,2.7496,181.93,181.87,2.7503]
[1736803817283,2.7496,181.93,181.84,13.10173231]
[1736803817284,152.25626454,181.97,181.83,24.13345169]
[1736803817589,152.25626454,181.97,181.86,2.7504]
[1736803817790,152.25626454,181.97,181.83,24.13345169]
[1736803817997,22.52985169,181.99,181.87,2.7503]
[1736803818295,1.6302,181.99,181.86,20.89965169]
[1736803818595,2.7493,181.95,181.89,2.7501]
[1736803818792,2.7493,181.95,181.9,6.32]
[1736803819393,2.7497,181.92,181.9,6.32]
[1736803819591,1.6302,181.99,181.9,6.32]
[1736803821297,2.7489,181.97,181.92,2.7495]
[1736803821491,1.6302,181.99,181.9,6.32]
[1736803822492,2.7491,181.96,181.9,6.32]
[1736803822691,1.6302,181.99,181.9,6.32]
[1736803823595,2.7489,181.97,181.92,2.7495]
[1736803823894,1.6302,181.99,181.9,6.32]
[1736803824294,4.3788,181.99,181.94,2.7493]
[1736803824497,20.89965169,182.08,181.92,20.89965169]
[1736803824798,1.6667,182.07,181.92,20.89965169]
[1736803824993,1.6667,182.07,181.97,2.7487]
[1736803824994,2.7481,182.03,181.97,2.7487]
[1736803825297,1.6667,182.07,181.98,6.32]
[1736803825491,2.7486,181.99,181.98,6.32]
[1736803826403,2.7478,182.05,181.98,6.32]
[1736803826698,1.6667,182.07,181.98,6.32]
[1736803828697,2.7485,182.0,181.98,6.32]
[1736803829098,2.7485,182.0,181.96,2.749]
[1736803829298,20.89965169,182.05,181.94,6.3]
[1736803829793,20.89965169,182.05,181.92,6.3]
[1736803830390,20.89965169,182.02,181.92,6.3]
[1736803830587,20.89965169,182.02,181.83,3.2663]
[1736803830788,20.89965169,182.02,181.85,20.89965169]
[1736803831598,2.7497,181.92,181.86,6.3]
[1736803831995,4.8545,181.98,181.85,20.89965169]
[1736803832192,2.75,181.9,181.86,2.7504]
[1736803832396,1.623,181.98,181.87,20.89965169]
[1736803832698,1.6277,182.04,181.93,20.89965169]
[1736803832894,1.6277,182.04,181.94,6.3]
[1736803833193,1.6277,182.04,181.94,10.6101]
[1736803833397,1.6277,182.04,181.94,7.8609]
[1736803833598,2.7483,182.01,181.96,2.7489]
[1736803833797,1.6277,182.04,181.94,7.8609]
[1736803834097,24.12645169,182.09,181.94,7.8609]
[1736803834398,1.6277,182.08,181.94,7.8609]
[1736803835797,2.7486,182.0,181.96,2.749]
[1736803836101,1.6277,182.08,181.96,2.749]
[1736803836291,2.7478,182.05,181.96,2.749]
[1736803836491,1.6277,182.08,181.94,7.8609]
[1736803836700,1.6277,182.08,181.95,2.7492]
[1736803836998,2.7487,181.99,181.95,2.7492]
[1736803837600,1.6277,182.08,181.94,7.8609]
[1736803837797,2.7489,181.97,181.94,7.8609]
[1736803838299,2.7487,181.99,181.94,10.6102]
[1736803838503,20.89965169,182.06,181.89,20.89965169]
[1736803838798,2.7492,181.96,181.91,2.7498]
[1736803839099,20.89965169,182.03,181.9,6.3]
[1736803839599,20.89965169,182.03,181.9,9.0499]
[1736803839799,5.4949,182.07,181.92,20.89965169]
[1736803839999,2.7488,181.98,181.94,2.7493]
[1736803840201,1.6604,182.06,181.92,20.89965169]
[1736803840504,2.7488,181.98,181.94,2.7493]
[1736803840803,1.6604,182.06,181.94,2.7493]
[1736803841294,1.6604,182.06,181.93,2.7495]
[1736803842506,20.89965169,181.94,181.7,7.50689858]
[1736803842698,20.89965169,181.86,181.72,1.6869]
[1736803842895,2.7519,181.78,181.72,4.4394]
[1736803843296,20.89965169,181.81,181.72,1.6869]
[1736803843503,20.89965169,181.78,181.7,6.3]
[1736803843901,20.89965169,181.78,181.65,1.6387]
[1736803844107,20.89965169,181.78,181.69,6.3]
[1736803844906,20.89965169,181.81,181.69,6.3]
[1736803845102,23.65105169,181.81,181.72,2.7527]
[1736803845309,23.65105169,181.81,181.69,6.3]
[1736803845310,20.89965169,181.81,181.69,6.3]
[1736803845606,20.89965169,181.89,181.69,6.3]
[1736803845607,2.7512,181.83,181.69,6.3]
[1736803845808,20.89965169,181.84,181.71,20.89965169]
[1736803846104,20.89965169,181.87,181.72,3.2131]
[1736803846309,20.89965169,181.9,181.74,20.89965169]
[1736803846606,20.89965169,181.9,181.75,1.6387]
[1736803846809,20.89965169,181.9,181.79,2.7516]
[1736803846810,2.7503,181.88,181.79,2.7516]
[1736803847000,20.89965169,181.9,181.76,6.3]
[1736803847609,2.7502,181.89,181.8,2.7514]
[1736803847907,20.89965169,181.9,181.76,6.3]
[1736803848109,20.89965169,181.87,181.76,6.3]
[1736803848403,20.89965169,181.85,181.76,6.3]
[1736803848810,20.89965169,181.88,181.76,6.3]
[1736803849010,2.7502,181.89,181.81,2.7513]
[1736803849713,20.89965169,181.91,181.8,2.7513]
[1736803849909,152.25626454,181.97,181.79,20.89965169]
[1736803850110,20.89965169,181.94,181.79,20.89965169]
[1736803850702,20.89965169,181.94,181.86,2.7504]
[1736803850703,2.7496,181.93,181.86,2.7504]
[1736803850906,3.269,181.96,181.86,6.3]
[1736803851312,4.3722,181.96,181.89,2.7501]
[1736803852212,2.7492,181.95,181.89,2.7501]
[1736803852512,1.6231,181.96,181.66,43.42034745]
[1736803852513,41.79930338,181.9,181.66,43.42034745]
[1736803852707,20.89965169,181.84,181.73,1.6976]
[1736803853412,20.89965169,181.84,181.75,2.7522]
[1736803855214,2.7511,181.83,181.75,2.7522]
[1736803855712,2.7511,181.83,181.73,1.6976]
[1736803855914,2.7511,181.83,181.76,2.752]
[1736803857815,20.89965169,181.84,181.78,2.7517]
[1736803858215,20.89965169,181.84,181.73,1.6976]
[1736803859011,20.89965169,181.84,181.79,2.7515]
[1736803859611,41.79930338,181.8,181.56,30.02759434]
[1736803859812,20.89965169,181.69,181.57,4.8664]
[1736803860616,2.7533,181.68,181.61,2.7542]
[1736803861311,20.89965169,181.69,181.57,4.8664]
[1736803861515,20.89965169,181.69,181.63,2.754]